lending/lending_fUSD_20240911
["ID","MTS","AMOUNT","RATE_DAILY","PERIOD"]
[337754489,1726055446705,-151.136615,0.00013055,2]
[337754490,1726055446714,-151.0,0.00013055,2]
[337754491,1726055446723,-236.010301,0.00013055,2]
[337754492,1726055446732,-236.010301,0.00013055,2]
[337754493,1726055446741,-152.0,0.0001306,3]
[337754494,1726055446751,-500.0,0.00013082,2]
[337754495,1726055446760,-422.33,0.00013096,2]
[337754496,1726055446769,-315.36,0.00013096,2]
[337754497,1726055446778,-422.33,0.00013096,2]
[337754498,1726055446787,-752.59,0.00013096,2]
[337754499,1726055446796,-422.33,0.00013096,2]
[337754500,1726055446805,-422.33,0.00013096,2]
[337754501,1726055446814,-752.59,0.00013096,2]
[337754502,1726055446823,-422.33,0.00013096,2]
[337754503,1726055446832,-752.59,0.00013096,2]
[337754504,1726055446842,-752.59,0.00013096,2]
[337754505,1726055446851,-422.33,0.00013096,2]
[337754506,1726055446859,-752.59,0.00013096,2]
[337754507,1726055446869,-422.33,0.00013096,2]
[337754508,1726055446878,-752.59,0.00013096,2]
[337754509,1726055446887,-422.33,0.00013096,2]
[337754510,1726055446896,-422.33,0.00013096,2]
[337754511,1726055446905,-752.59,0.00013096,2]
[337754512,1726055446914,-422.33,0.00013096,2]
[337754513,1726055446923,-751.23,0.00013096,2]
[337754514,1726055446933,-4851.28128,0.00013096,2]
[337754515,1726055446942,-4851.28128,0.00013096,2]
[337754516,1726055446952,-216.301678,0.00013096,2]
[337754517,1726055446961,-216.301678,0.00013096,2]
[337754518,1726055446971,-351.31,0.000131,2]
[337754519,1726055446983,-162.12,0.00013333,2]
[337754520,1726055446992,-427.71,0.0001337,2]
[337754521,1726055447002,-427.71,0.0001337,2]
[337754522,1726055447012,-213.67,0.0001337,2]
[337754523,1726055447021,-427.71,0.0001337,2]
[337754524,1726055447031,-150.0,0.0001337,2]
[337754525,1726055447040,-427.71,0.0001337,2]
[337754526,1726055447051,-427.71,0.0001337,2]
[337754527,1726055447061,-150.0,0.0001337,2]
[337754528,1726055447071,-427.71,0.0001337,2]
[337754529,1726055447081,-427.71,0.0001337,2]
[337754530,1726055447095,-427.71,0.0001337,2]
[337754531,1726055447105,-427.71,0.0001337,2]
[337754532,1726055447114,-427.71,0.0001337,2]
[337754533,1726055447123,-427.71,0.0001337,2]
[337754534,1726055447132,-423.38122,0.0001339,2]
[337754535,1726055447142,-237.87,0.00013466,2]
[337754536,1726055447151,-796.0,0.00013502,2]
[337754537,1726055447161,-1000.0,0.00013514,2]
[337754538,1726055447170,-151.0,0.00013622,2]
[337754539,1726055447180,-154.142961,0.00013622,2]
[337754540,1726055447190,-151.0,0.00013622,2]
[337754541,1726055447199,-154.142961,0.00013622,2]
[337754542,1726055447208,-151.0,0.00013622,2]
[337754543,1726055447218,-151.0,0.00013622,2]
[337754544,1726055447228,-1206.665994,0.00013622,2]
[337754545,1726055447237,-1206.665994,0.00013622,2]
[337754546,1726055447247,-151.0,0.00013699,2]
[337754547,1726055447257,-151.0,0.00013699,2]
[337754548,1726055447267,-151.0,0.00013699,2]
[337754549,1726055447276,-151.0,0.00013699,2]
[337754550,1726055447285,-151.0,0.00013699,2]
[337754551,1726055447296,-151.0,0.00013699,2]
[337754552,1726055447306,-480.0,0.00013699,2]
[337754553,1726055447317,-480.0,0.00013699,2]
[337754554,1726055447327,-480.0,0.00013699,2]
[337754555,1726055447337,-480.0,0.00013699,2]
[337754556,1726055447346,-480.0,0.00013699,2]
[337754557,1726055447356,-480.0,0.00013699,2]
[337754558,1726055447366,-480.0,0.00013699,2]
[337754559,1726055447376,-480.0,0.00013699,2]
[337754560,1726055447388,-480.0,0.00013699,2]
[337754561,1726055447400,-480.0,0.00013699,2]
[337754562,1726055447410,-480.126336,0.00013699,2]
[337754563,1726055447420,-480.126336,0.00013699,2]
[337754564,1726055447430,-480.126336,0.00013699,2]
[337754565,1726055447439,-480.126336,0.00013699,2]
[337754566,1726055447448,-480.126336,0.00013699,2]
[337754567,1726055447457,-480.126336,0.00013699,2]
[337754568,1726055447468,-480.126336,0.00013699,2]
[337754569,1726055447477,-480.126336,0.00013699,2]
[337754570,1726055447487,-480.126336,0.00013699,2]
[337754571,1726055447496,-480.126336,0.00013699,2]
[337754572,1726055447505,-438.379751,0.00013699,2]
[337754573,1726055447515,-438.379751,0.00013699,2]
[337754574,1726055447524,-438.379751,0.00013699,2]
[337754575,1726055447534,-438.379751,0.00013699,2]
[337754576,1726055447543,-438.379751,0.00013699,2]
[337754577,1726055447552,-438.379751,0.00013699,2]
[337754578,1726055447562,-438.379751,0.00013699,2]
[337754579,1726055447571,-438.379751,0.00013699,2]
[337754580,1726055447580,-438.379751,0.00013699,2]
[337754581,1726055447590,-438.379751,0.00013699,2]
[337754582,1726055447599,-438.379751,0.00013699,2]
[337754583,1726055447609,-438.379751,0.00013699,2]
[337754584,1726055447618,-174.684715,0.00013699,2]
[337754585,1726055447628,-174.684715,0.00013699,2]
[337754586,1726055447638,-151.0,0.00013699,2]
[337754587,1726055447648,-151.0,0.00013699,2]
[337754588,1726055447657,-190.420517,0.00013699,2]
[337754589,1726055447667,-190.420517,0.00013699,2]
[337754590,1726055447676,-151.638146,0.00013699,2]
[337754591,1726055447686,-151.638146,0.00013699,2]
[337754592,1726055447695,-151.0,0.00013699,2]
[337754593,1726055447706,-338.673922,0.00013699,2]
[337754594,1726055447715,-338.673922,0.00013699,2]
[337754595,1726055447725,-151.0,0.00013699,2]
[337754596,1726055447734,-254.91023,0.00013699,2]
[337754597,1726055447744,-254.91023,0.00013699,2]
[337754598,1726055447753,-2969.358482,0.00013699,2]
[337754599,1726055447762,-2969.358482,0.00013699,2]
[337754600,1726055447771,-438.379751,0.00013699,2]
[337754601,1726055447780,-438.379751,0.00013699,2]
[337754602,1726055447790,-151.0,0.00013791,2]
[337754603,1726055447799,-151.0,0.00013791,2]
[337754604,1726055447809,-278.685653,0.00013791,2]
[337754605,1726055447817,-151.0,0.00013791,2]
[337754606,1726055447827,-165.276736,0.00013791,2]
[337754607,1726055447836,-165.276736,0.00013791,2]
[337754608,1726055447850,-151.261585,0.00013791,2]
[337754609,1726055447859,-151.0,0.00013791,2]
[337754610,1726055447868,-151.233068,0.00013791,2]
[337754611,1726055447877,-367.414364,0.00013791,2]
[337754612,1726055447886,-367.414364,0.00013791,2]
[337754613,1726055447896,-151.0,0.00013791,2]
[337754614,1726055447905,-151.0,0.00013791,2]
[337754615,1726055447914,-151.0,0.00013791,2]
[337754616,1726055447923,-246.282798,0.00013791,2]
[337754617,1726055447933,-246.282798,0.00013791,2]
[337754618,1726055447942,-431.099092,0.00013791,2]
[337754619,1726055447950,-431.099092,0.00013791,2]
[337754620,1726055447959,-161.615058,0.00013791,2]
[337754621,1726055447968,-161.615058,0.00013791,2]
[337754622,1726055447978,-552.205511,0.00013791,2]
[337754623,1726055447987,-151.0,0.00013791,2]
[337754624,1726055447996,-552.205511,0.00013791,2]
[337754625,1726055448005,-151.0,0.00013791,2]
[337754626,1726055448014,-151.0,0.00013791,2]
[337754627,1726055448023,-374.696842,0.00013791,2]
[337754628,1726055448033,-374.696842,0.00013791,2]
[337754629,1726055448042,-151.0,0.00013791,2]
[337754630,1726055448051,-151.0,0.00013791,2]
[337754631,1726055448060,-151.0,0.00013791,2]
[337754632,1726055448069,-282.493326,0.00013791,2]
[337754633,1726055448078,-282.493326,0.00013791,2]
[337754634,1726055448087,-256.617628,0.00013791,2]
[337754635,1726055448096,-153.437598,0.00013791,2]
[337754636,1726055448105,-151.0,0.00013791,2]
[337754637,1726055448114,-279.586335,0.00013791,2]
[337754638,1726055448123,-279.586335,0.00013791,2]
[337754639,1726055448132,-151.0,0.00013791,2]
[337754640,1726055448141,-151.0,0.00013791,2]
[337754641,1726055448151,-462.16319,0.00013791,2]
[337754642,1726055448160,-1063.479008,0.00013791,2]
[337754643,1726055448169,-151.0,0.00013791,2]
[337754644,1726055448179,-462.16319,0.00013791,2]
[337754645,1726055448189,-1063.479008,0.00013791,2]
[337754646,1726055448197,-151.0,0.00013791,2]
[337754647,1726055448206,-151.0,0.00013791,2]
[337754648,1726055448215,-151.0,0.00013791,2]
[337754649,1726055448224,-153.522448,0.00013791,2]
[337754650,1726055448234,-480.0,0.00013791,2]
[337754651,1726055448243,-480.0,0.00013791,2]
[337754652,1726055448252,-480.126336,0.00013791,2]
[337754653,1726055448261,-151.0,0.00013791,2]
[337754654,1726055448270,-480.126336,0.00013791,2]
[337754655,1726055448279,-2147.856773,0.00013791,2]
[337754656,1726055448288,-2147.856773,0.00013791,2]
[337754657,1726055448298,-522.201367,0.00013791,2]
[337754658,1726055448307,-407.19569,0.00013791,2]
[337754659,1726055448316,-522.201367,0.00013791,2]
[337754660,1726055448325,-407.19569,0.00013791,2]
[337754661,1726055448335,-151.0,0.00013791,2]
[337754662,1726055448345,-267.999437,0.00013791,2]
[337754663,1726055448354,-151.0,0.00013791,2]
[337754664,1726055448364,-201.596519,0.00013791,2]
[337754665,1726055448373,-201.596519,0.00013791,2]
[337754666,1726055448386,-701.194204,0.00013791,2]
[337754667,1726055448399,-151.0,0.00013791,2]
[337754668,1726055448412,-151.0,0.00013791,2]
[337754669,1726055448424,-1999.620295,0.00013791,2]
[337754670,1726055448436,-1999.620295,0.00013791,2]
[337754671,1726055448448,-874.7439573,0.00013791,2]
[337754672,1726055448460,-772.6274785,0.00013791,2]
[337754673,1726055448470,-151.0,0.00013791,2]
[337754674,1726055448482,-17080.1108517,0.00013791,2]
[337754675,1726055448495,-15086.2007915,0.00013791,2]
[337754676,1726055448506,-254.91023,0.00013791,2]
[337754677,1726055448518,-254.91023,0.00013791,2]
[337754678,1726055448530,-1952.958013,0.00013791,2]
[337754679,1726055448541,-1723.4859291,0.00013791,2]
[337754680,1726055448553,-2969.358482,0.00013791,2]
[337754681,1726055448565,-2969.358482,0.00013791,2]
[337754682,1726055448577,-438.379751,0.00013791,2]
[337754683,1726055448589,-438.379751,0.00013791,2]
[337754684,1726055448602,-151.0,0.00013791,2]
[337754685,1726055448613,-4851.28128,0.00013791,2]
[337754686,1726055448625,-4851.28128,0.00013791,2]
[337754687,1726055448636,-216.301678,0.00013791,2]
[337754688,1726055448648,-216.301678,0.00013791,2]
[337754689,1726055448659,-236.010301,0.00013791,2]
[337754690,1726055448670,-236.010301,0.00013791,2]
[337754691,1726055448682,-174.684715,0.000138,2]
[337754692,1726055448694,-174.684715,0.000138,2]
[337754693,1726055448706,-151.0,0.000138,2]
[337754694,1726055448716,-151.0,0.000138,2]
[337754695,1726055448728,-151.0,0.000138,2]
[337754696,1726055448738,-151.0,0.000138,2]
[337754697,1726055448751,-165.276736,0.000138,2]
[337754698,1726055448761,-165.276736,0.000138,2]
[337754699,1726055448772,-151.0,0.000138,2]
[337754700,1726055448782,-279.586335,0.000138,2]
[337754701,1726055448794,-279.586335,0.000138,2]
[337754702,1726055448805,-151.407304,0.000138,2]
[337754703,1726055448817,-151.0,0.000138,2]
[337754704,1726055448828,-462.16319,0.000138,2]
[337754705,1726055448839,-1063.479008,0.000138,2]
[337754706,1726055448850,-151.0,0.000138,2]
[337754707,1726055448862,-462.16319,0.000138,2]
[337754708,1726055448874,-1063.479008,0.000138,2]
[337754709,1726055448885,-151.0,0.000138,2]
[337754710,1726055448898,-151.0,0.000138,2]
[337754711,1726055448908,-151.0,0.000138,2]
[337754712,1726055448918,-480.0,0.000138,2]
[337754713,1726055448928,-480.0,0.000138,2]
[337754714,1726055448938,-480.126336,0.000138,2]
[337754715,1726055448948,-151.0,0.000138,2]
[337754716,1726055448959,-480.126336,0.000138,2]
[337754717,1726055448971,-2147.856773,0.000138,2]
[337754718,1726055448982,-2147.856773,0.000138,2]
[337754719,1726055448994,-522.201367,0.000138,2]
[337754720,1726055449006,-407.19569,0.000138,2]
[337754721,1726055449015,-522.201367,0.000138,2]
[337754722,1726055449025,-151.0,0.000138,2]
[337754723,1726055449038,-407.19569,0.000138,2]
[337754724,1726055449048,-151.0,0.000138,2]
[337754725,1726055449059,-201.596519,0.000138,2]
[337754726,1726055449071,-201.596519,0.000138,2]
[337754727,1726055449082,-701.194204,0.000138,2]
[337754728,1726055449093,-151.0,0.000138,2]
[337754729,1726055449103,-151.0,0.000138,2]
[337754730,1726055449113,-151.0,0.000138,2]
[337754731,1726055449123,-151.0,0.000138,2]
[337754732,1726055449134,-151.0,0.000138,2]
[337754733,1726055449145,-190.420517,0.000138,2]
[337754734,1726055449155,-190.420517,0.000138,2]
[337754735,1726055449166,-190.420517,0.000138,2]
[337754736,1726055449176,-151.638146,0.000138,2]
[337754737,1726055449187,-190.420517,0.000138,2]
[337754738,1726055449197,-151.638146,0.000138,2]
[337754739,1726055449208,-151.638146,0.000138,2]
[337754740,1726055449219,-151.638146,0.000138,2]
[337754741,1726055449229,-151.0,0.000138,2]
[337754742,1726055449240,-1999.620295,0.000138,2]
[337754743,1726055449251,-1999.620295,0.000138,2]
[337754744,1726055449261,-151.0,0.000138,2]
[337754745,1726055449272,-338.673922,0.000138,2]
[337754746,1726055449283,-338.673922,0.000138,2]
[337754747,1726055449293,-338.673922,0.000138,2]
[337754748,1726055449303,-338.673922,0.000138,2]
[337754749,1726055449314,-151.0,0.000138,2]
[337754750,1726055449324,-254.91023,0.000138,2]
[337754751,1726055449334,-254.91023,0.000138,2]
[337754752,1726055449345,-2969.358482,0.000138,2]
[337754753,1726055449356,-2969.358482,0.000138,2]
[337754754,1726055449367,-438.379751,0.000138,2]
[337754755,1726055449377,-438.379751,0.000138,2]
[337754756,1726055449390,-34285.04919885,0.000138,3]
[337754757,1726055449667,-10998.29181395,0.000138,3]
[337754758,1726055449677,-151.0,0.000138,2]
[337754759,1726055449690,-151.0,0.000138,2]
[337754760,1726055449702,-154.142961,0.000138,2]
[337754761,1726055449713,-151.0,0.000138,2]
[337754762,1726055449724,-154.142961,0.000138,2]
[337754763,1726055449734,-151.0,0.000138,2]
[337754764,1726055449746,-154.142961,0.000138,2]
[337754765,1726055449756,-154.142961,0.000138,2]
[337754766,1726055449766,-152.091836,0.000138,2]
[337754767,1726055449777,-151.0,0.000138,2]
[337754768,1726055449787,-151.0,0.000138,2]
[337754769,1726055449798,-1206.665994,0.000138,2]
[337754770,1726055449808,-1206.665994,0.000138,2]
[337754771,1726055449819,-1206.665994,0.000138,2]
[337754772,1726055449829,-1206.665994,0.000138,2]
[337754773,1726055449839,-236.010301,0.000138,2]
[337754774,1726055449850,-236.010301,0.000138,2]
[337754775,1726055449861,-152.0,0.00013887,4]
[337754776,1726055449872,-670.5109998,0.0001389,2]
[337754777,1726055449882,-568.3945211,0.0001389,2]
[337754778,1726055449893,-13092.2907313,0.0001389,2]
[337754779,1726055449903,-11098.3806712,0.0001389,2]
[337754780,1726055449915,-1494.0138452,0.0001389,2]
[337754781,1726055449926,-1264.5417613,0.0001389,2]
[337754782,1726055449936,-4851.28128,0.0001389,2]
[337754783,1726055449947,-4851.28128,0.0001389,2]
[337754784,1726055449958,-216.301678,0.0001389,2]
[337754785,1726055449969,-216.301678,0.0001389,2]
[337754786,1726055449980,-151.0,0.000139,2]
[337754787,1726055449990,-151.0,0.000139,2]
[337754788,1726055450002,-367.414364,0.000139,2]
[337754789,1726055450012,-367.414364,0.000139,2]
[337754790,1726055450023,-151.0,0.000139,2]
[337754791,1726055450033,-267.853218,0.000139,2]
[337754792,1726055450044,-151.0,0.000139,2]
[337754793,1726055450054,-246.282798,0.000139,2]
[337754794,1726055450065,-246.282798,0.000139,2]
[337754795,1726055450075,-431.099092,0.000139,2]
[337754796,1726055450086,-431.099092,0.000139,2]
[337754797,1726055450096,-161.615058,0.000139,2]
[337754798,1726055450106,-161.615058,0.000139,2]
[337754799,1726055450121,-552.205511,0.000139,2]
[337754800,1726055450132,-151.0,0.000139,2]
[337754801,1726055450142,-552.205511,0.000139,2]
[337754802,1726055450153,-151.0,0.000139,2]
[337754803,1726055450162,-151.0,0.000139,2]
[337754804,1726055450173,-374.696842,0.000139,2]
[337754805,1726055450183,-374.696842,0.000139,2]
[337754806,1726055450193,-151.0,0.000139,2]
[337754807,1726055450204,-151.0,0.000139,2]
[337754808,1726055450214,-151.0,0.000139,2]
[337754809,1726055450224,-282.493326,0.000139,2]
[337754810,1726055450235,-282.493326,0.000139,2]
[337754811,1726055450245,-151.0,0.000139,2]
[337754812,1726055450255,-151.0,0.000139,2]
[337754813,1726055450265,-151.0,0.000139,2]
[337754814,1726055450275,-151.0,0.000139,2]
[337754815,1726055450286,-151.0,0.000139,2]
[337754816,1726055450297,-190.420517,0.000139,2]
[337754817,1726055450307,-190.420517,0.000139,2]
[337754818,1726055450318,-151.638146,0.000139,2]
[337754819,1726055450328,-151.638146,0.000139,2]
[337754820,1726055450339,-338.673922,0.000139,2]
[337754821,1726055450351,-338.673922,0.000139,2]
[337754822,1726055450361,-151.0,0.000139,2]
[337754823,1726055450372,-254.91023,0.000139,2]
[337754824,1726055450384,-254.910224,0.000139,2]
[337754825,1726055450395,-2969.358482,0.000139,2]
[337754826,1726055450405,-2969.358488,0.000139,2]
[337754827,1726055450416,-438.379751,0.000139,2]
[337754828,1726055450427,-438.379756,0.000139,2]
[337754829,1726055450438,-151.0,0.000139,2]
[337754830,1726055450449,-154.142961,0.000139,2]
[337754831,1726055450461,-236.770504,0.000139,2]
[337754832,1726055450472,-154.142961,0.000139,2]
[337754833,1726055450784,-1843.79718796,0.000139,2]
[337754834,1726055450805,-1563.01664719,0.000139,2]
[337754835,1726055450826,-284.3980396,0.00012757,2]
[337754836,1726055450841,-1015.75187423,0.00012757,2]
[337754837,1726055450969,-261.4614814,0.00012757,2]
[337754838,1726055450979,-558.752126,0.00013,2]
[337754839,1726055450988,-558.752126,0.00013,2]
[337754840,1726055450998,-558.752126,0.00013,2]
[337754841,1726055451008,-558.752126,0.00013,2]
[337754842,1726055451017,-558.752126,0.00013,2]
[337754843,1726055451026,-558.752126,0.00013096,2]
[337754844,1726055451036,-1444.46744485,0.000139,2]
[337754845,1726055451045,-3739.58691132,0.000139,2]
[337754846,1726055452361,-1111.69436868,0.000139,2]
[337754847,1726055452370,-198.30563052,0.000139,2]
[337754848,1726055452384,-1008.36036348,0.000139,2]
[337754849,1726055452394,-216.301678,0.000139,2]
[337754850,1726055452404,-216.301678,0.000139,2]
[337754851,1726055452414,-1206.665994,0.000139,2]
[337754852,1726055452424,-500.0,0.00013904,2]
[337754853,1726055452435,-1101.0,0.00014,2]
[337754854,1726055452444,-423.38121,0.0001402,2]
[337754855,1726055452454,-418.83422919,0.00014042,2]
[337754856,1726055452464,-422.33,0.00014055,2]
[337754857,1726055452474,-422.33,0.00014055,2]
[337754858,1726055452483,-422.33,0.00014055,2]
[337754859,1726055452493,-270.4984486,0.00014055,2]
[337754860,1726055452509,-485.305,0.00013791,2]
[337754861,1726055452603,-753.0,0.00013,2]
[337754862,1726055452612,-558.752126,0.00013,2]
[337754863,1726055452623,-558.752126,0.00013,2]
[337754864,1726055452633,-558.752126,0.00013,2]
[337754865,1726055452643,-558.752126,0.00013,2]
[337754866,1726055452652,-419.29,0.00013096,2]
[337754867,1726055452663,-73.447126,0.00013791,2]
[337754868,1726055452672,-558.752126,0.0001389,2]
[337754869,1726055452682,-558.752126,0.000139,2]
[337754870,1726055452691,-151.8315514,0.00014055,2]
[337754871,1726055452701,-23.14762212,0.00014055,2]
[337754872,1726055452756,-399.18237788,0.00014055,2]
[337754873,1726055452766,-422.33,0.00014055,2]
[337754874,1726055452776,-422.33,0.00014055,2]
[337754875,1726055452785,-159.52,0.00014055,2]
[337754876,1726055452795,-422.33,0.00014055,2]
[337754877,1726055452805,-422.33,0.00014055,2]
[337754878,1726055452815,-422.33,0.00014055,2]
[337754879,1726055452825,-422.33,0.00014055,2]
[337754880,1726055452836,-422.33,0.00014055,2]
[337754881,1726055452847,-422.33,0.00014055,2]
[337754882,1726055452856,-422.33,0.00014055,2]
[337754883,1726055452866,-203.0,0.0001408,2]
[337754884,1726055452876,-164.0,0.0001415,2]
[337754885,1726055452885,-426.11,0.00014192,2]
[337754886,1726055452895,-827.0,0.00014192,2]
[337754887,1726055452904,-329.298378,0.00014247,2]
[337754888,1726055452914,-203.0,0.0001426,2]
[337754889,1726055452923,-220.71641,0.00014265,2]
[337754890,1726055452932,-156.098783,0.00014265,2]
[337754891,1726055452942,-223.112661,0.00014265,2]
[337754892,1726055452951,-279.586335,0.00014389,2]
[337754893,1726055452961,-279.586335,0.00014389,2]
[337754894,1726055452971,-462.16319,0.00014389,2]
[337754895,1726055452981,-1063.479008,0.00014389,2]
[337754896,1726055452991,-462.16319,0.00014389,2]
[337754897,1726055453000,-1063.479008,0.00014389,2]
[337754898,1726055453010,-151.242029,0.00014389,2]
[337754899,1726055453019,-151.0,0.00014389,2]
[337754900,1726055453029,-151.0,0.00014389,2]
[337754901,1726055453038,-480.0,0.00014389,2]
[337754902,1726055453048,-480.0,0.00014389,2]
[337754903,1726055453057,-480.126336,0.00014389,2]
[337754904,1726055453067,-151.0,0.00014389,2]
[337754905,1726055453077,-480.126336,0.00014389,2]
[337754906,1726055453088,-2147.856773,0.00014389,2]
[337754907,1726055453098,-2147.856773,0.00014389,2]
[337754908,1726055453108,-522.201367,0.00014389,2]
[337754909,1726055453117,-407.19569,0.00014389,2]
[337754910,1726055453127,-522.201367,0.00014389,2]
[337754911,1726055453136,-407.19569,0.00014389,2]
[337754912,1726055453146,-1999.620295,0.00014389,2]
[337754913,1726055453155,-1999.620295,0.00014389,2]
[337754914,1726055453165,-223.112661,0.00014444,2]
[337754915,1726055453174,-203.0,0.0001445,2]
[337754916,1726055453184,-4610.0,0.000145,2]
[337754917,1726055453194,-151.0,0.000145,2]
[337754918,1726055453205,-281.591963,0.000145,2]
[337754919,1726055453216,-201.596519,0.000145,2]
[337754920,1726055453226,-201.596519,0.000145,2]
[337754921,1726055453236,-701.194204,0.000145,2]
[337754922,1726055453246,-151.538148,0.000145,2]
[337754923,1726055453255,-151.0,0.000145,2]
[337754924,1726055453266,-151.0,0.000145,2]
[337754925,1726055453276,-236.010301,0.000145,2]
[337754926,1726055453285,-236.010301,0.000145,2]
[337754927,1726055453295,-993.42,0.0001461,2]
[337754928,1726055453306,-223.112661,0.00014622,2]
[337754929,1726055453316,-203.0,0.0001463,2]
[337754930,1726055453326,-423.38122,0.0001465,2]
[337754931,1726055453334,-466.2780423,0.0001469,2]
[337754932,1726055453344,-6514.87063171,0.0001469,2]
[337754933,1726055453356,-2137.90186013,0.0001469,2]
[337754934,1726055462452,226.17,0.0001194,2]
[337754935,1726055514714,500.0,0.00011164,2]
[337754936,1726055515212,500.0,8.972e-05,2]
[337754937,1726055516808,500.0,0.00011712,2]
[337754938,1726055654675,844.4,0.00011476,2]
[337754939,1726055897605,154.94,0.00010959,2]
[337754944,1726056222489,802.18,0.00011339,2]
[337754945,1726056227338,24713.65,0.0001,2]
[337754946,1726056382895,150.87,0.00010959,2]
[337754954,1726056632384,-150.0,0.00012599,2]
[337754955,1726056632394,-300.0,0.00012599,2]
[337754956,1726056632403,-689.4383,0.000126,2]
[337754964,1726056638240,-25151.29898074,0.000126,2]
[337754965,1726056638252,-74159.26271926,0.000126,2]
[337754966,1726056638261,-212.306,0.0001287,2]
[337754967,1726056638270,-158.428,0.0001287,2]
[337754968,1726056638279,-7857.8631395,0.0001287,2]
[337754969,1726056638289,-250.0,0.00012978,2]
[337754970,1726056638298,-173.2,0.00012978,2]
[337754971,1726056638308,-250.0,0.00012979,2]
[337754972,1726056638318,-151.0,0.00013,2]
[337754973,1726056638327,-151.0,0.00013,2]
[337754974,1726056638336,-151.0,0.00013,2]
[337754975,1726056638346,-151.0,0.00013,2]
[337754980,1726056638553,-151.0,0.00013,2]
[337754982,1726056638562,-151.0,0.00013,2]
[337754983,1726056638572,-151.0,0.00013,2]
[337754985,1726056638581,-151.0,0.00013,2]
[337754987,1726056638590,-151.0,0.00013,2]
[337754989,1726056638599,-231.664987,0.00013,2]
[337754991,1726056638609,-316.18,0.00013,2]
[337754993,1726056638618,-500.73203,0.00013,2]
[337754995,1726056638627,-914.35,0.00013005,2]
[337754997,1726056638637,-250.0,0.00013009,2]
[337754999,1726056638646,-173.2,0.00013043,2]
[337755001,1726056638655,-499.99,0.00013043,2]
[337755003,1726056638664,-221.77,0.00013047,2]
[337755005,1726056638674,-150.99,0.00013047,2]
[337755007,1726056638683,-170.65,0.00013096,2]
[337755008,1726056638692,-150.99,0.00013096,2]
[337755010,1726056638702,-257.27,0.00013256,2]
[337755011,1726056638711,-13540.65,0.00013256,2]
[337755013,1726056638720,-500.0,0.00013267,2]
[337755015,1726056638729,-151.0,0.0001337,2]
[337755016,1726056638739,-1000.0,0.00013394,2]
[337755017,1726056638749,-802.18,0.00013603,2]
[337755018,1726056638759,-500.0,0.0001369,2]
[337755019,1726056638771,-500.0,0.0001369,2]
[337755020,1726056638780,-500.0,0.0001369,2]
[337755021,1726056638789,-500.0,0.0001369,2]
[337755022,1726056638799,-500.0,0.0001369,2]
[337755023,1726056638808,-500.0,0.0001369,2]
[337755024,1726056638818,-642.25,0.0001369,2]
[337755025,1726056638827,-500.0,0.0001369,2]
[337755026,1726056638837,-500.0,0.0001369,2]